fUST/lending_fUST_20240929
["ID","MTS","AMOUNT","RATE_DAILY","PERIOD"]
[339398248,1727568640101,-1000.0,0.00016798,2]
[339398249,1727568640111,-500.0,0.00016865,2]
[339398250,1727568640120,-209.41227445,0.00016865,2]
[339398251,1727568640129,-500.0,0.00016865,2]
[339398252,1727568640139,-238.12021734,0.00016866,2]
[339398253,1727568640148,-349.86673214,0.00016866,2]
[339398254,1727568640158,-500.0,0.00016866,2]
[339398255,1727568640167,-500.0,0.00016866,2]
[339398256,1727568640176,-500.0,0.00016866,2]
[339398257,1727568640186,-500.0,0.00016866,2]
[339398258,1727568640196,-206.22422486,0.00016866,2]
[339398259,1727568640205,-31167.44601137,0.00016867,3]
[339398260,1727568640214,-28916.12191293,0.00016867,3]
[339398261,1727568640319,-21659.39749964,0.00016867,2]
[339398280,1727568646095,-547.25618123,0.00016867,2]
[339398281,1727568646112,-6356.99077603,0.00016867,2]
[339398291,1727569329961,184.94,0.00010959,2]
[339398292,1727569350798,369.88,0.00010959,2]
[339398293,1727569402462,277.41,0.00010959,2]
[339398294,1727569413316,423.81,0.00010959,2]
[339398295,1727569434139,160.54,0.00010959,2]
[339398296,1727569444731,802.7,0.00010959,2]
[339398310,1727569758103,-162.598817,0.00015189,2]
[339398311,1727569758124,-344.214361,0.00015405,2]
[339398312,1727569758146,-268.154399,0.0001542,2]
[339398359,1727569832411,-1016.07872546,0.00015205,2]
[339398360,1727569832424,-746.60585568,0.00015205,2]
[339398367,1727569838549,-1237.31541886,0.00015205,2]
[339398369,1727569838559,-150.0406866,0.0001542,2]
[339398371,1727569838569,-155.02308535,0.00015665,2]
[339398372,1727569838579,-196.81447113,0.00015665,2]
[339398374,1727569838588,-157.974555,0.00015765,2]
[339398376,1727569838598,-157.974555,0.00015847,2]
[339398378,1727569838607,-157.974555,0.00015929,2]
[339398380,1727569838616,-157.974555,0.00016011,2]
[339398382,1727569838626,-16.36563813,0.0001609,2]
[339398576,1727569840428,-327.84872287,0.0001609,2]
[339398578,1727569840439,-157.974555,0.00016093,2]
[339398580,1727569840449,-157.974555,0.00016176,2]
[339398582,1727569840459,-157.974555,0.00016258,2]
[339398584,1727569840469,-477.72926809,0.00016265,2]
[339398586,1727569840478,-157.974555,0.0001634,2]
[339398588,1727569840488,-2678.3389107,0.00016386,2]
[339398590,1727569840498,-157.974555,0.00016422,2]
[339398592,1727569840508,-300.0,0.00016454,2]
[339398594,1727569840519,-300.0,0.00016454,2]
[339398596,1727569840530,-7066.61254455,0.00016455,2]
[339398598,1727569840540,-500.0,0.00016485,2]
[339398600,1727569840550,-500.0,0.00016485,2]
[339398602,1727569840559,-209.41227445,0.00016485,2]
[339398604,1727569840569,-574.25,0.00016486,7]
[339398606,1727569840579,-500.0,0.00016486,7]
[339398609,1727569840590,-500.0,0.00016486,7]
[339398611,1727569840601,-500.0,0.00016486,7]
[339398613,1727569840611,-500.0,0.00016486,7]
[339398615,1727569840622,-500.0,0.00016486,7]
[339398617,1727569840632,-500.0,0.00016486,7]
[339398619,1727569840642,-500.0,0.00016486,7]
[339398621,1727569840653,-500.0,0.00016486,7]
[339398623,1727569840664,-500.0,0.00016486,7]
[339398625,1727569840674,-500.0,0.00016486,7]
[339398628,1727569840684,-500.0,0.00016486,7]
[339398630,1727569840695,-500.0,0.00016486,7]
[339398632,1727569840705,-500.0,0.00016486,7]
[339398634,1727569840714,-500.0,0.00016486,7]
[339398636,1727569840725,-500.0,0.00016486,7]
[339398638,1727569840735,-500.0,0.00016486,7]
[339398640,1727569840745,-500.0,0.00016486,7]
[339398642,1727569840754,-511.62,0.00016486,7]
[339398644,1727569840764,-500.0,0.00016486,7]
[339398646,1727569840773,-500.0,0.00016486,7]
[339398648,1727569840784,-500.0,0.00016486,7]
[339398650,1727569840795,-500.0,0.00016486,7]
[339398652,1727569840805,-500.0,0.00016486,7]
[339398655,1727569840815,-500.0,0.00016486,7]
[339398657,1727569840825,-500.0,0.00016486,7]
[339398659,1727569840836,-500.0,0.00016486,7]
[339398661,1727569840846,-605.3,0.00016486,7]
[339398663,1727569840856,-500.0,0.00016486,7]
[339398665,1727569840865,-500.0,0.00016486,7]
[339398667,1727569840876,-500.0,0.00016486,7]
[339398669,1727569840886,-500.0,0.00016486,7]
[339398671,1727569840896,-500.0,0.00016486,7]
[339398673,1727569840907,-500.0,0.00016486,7]
[339398675,1727569840918,-500.0,0.00016486,7]
[339398678,1727569840932,-500.0,0.00016486,7]
[339398681,1727569840947,-500.0,0.00016486,7]
[339398683,1727569840957,-500.0,0.00016486,7]
[339398685,1727569840967,-500.0,0.00016486,7]
[339398687,1727569840977,-500.0,0.00016486,7]
[339398689,1727569840987,-500.0,0.00016486,7]
[339398691,1727569840996,-500.0,0.00016486,7]
[339398693,1727569841006,-500.0,0.00016486,7]
[339398695,1727569841015,-500.0,0.00016486,7]
[339398697,1727569841026,-500.0,0.00016486,7]
[339398699,1727569841036,-500.0,0.00016486,7]
[339398701,1727569841045,-500.0,0.00016486,7]
[339398703,1727569841055,-157.974555,0.00016504,2]
[339398705,1727569841065,-157.974555,0.00016586,2]
[339398707,1727569841074,-181.0,0.0001662,2]
[339398709,1727569841084,-2495.71532039,0.00016627,2]
[339398712,1727569841099,-1143.2388715,0.00016627,2]
[339398714,1727569841110,-292.57704431,0.00016646,2]
[339398716,1727569841120,-429.40884399,0.00016646,2]
[339398718,1727569841130,-500.0,0.00016646,2]
[339398721,1727569841140,-500.0,0.00016646,2]
[339398723,1727569841151,-500.0,0.00016646,2]
[339398725,1727569841161,-500.0,0.00016646,2]
[339398727,1727569841171,-500.0,0.00016646,2]
[339398729,1727569841180,-181.95840381,0.00016646,2]
[339398731,1727569841190,-1000.0,0.00016647,2]
[339398733,1727569841199,-61687.08424632,0.00016647,2]
[339398735,1727569841209,-1615.79782644,0.000167,2]
[339398737,1727569841218,-28916.12191293,0.00016726,3]
[339398739,1727569841231,-31167.44601137,0.00016726,3]
[339398741,1727569841240,-183154.775511,0.00016726,2]
[339398757,1727569841384,-4169.64816954,0.00016726,2]
[339398760,1727569841395,-183154.775511,0.00016727,2]
[339398762,1727569841405,-4169.64816954,0.00016727,2]
[339398764,1727569841414,-183154.775511,0.00016728,2]
[339398766,1727569841424,-50035.7780345,0.00016728,2]
[339398768,1727569841433,-160.0,0.00016736,2]
[339398770,1727569841442,-8339.29633908,0.00016757,2]
[339398772,1727569841455,-151.0,0.00016767,2]
[339398774,1727569841466,-187.528705,0.00016767,2]
[339398776,1727569841477,-187.528705,0.00016767,2]
[339398778,1727569841487,-151.0,0.00016767,2]
[339398780,1727569841495,-151.0,0.00016767,2]
[339398783,1727569841505,-1161.515601,0.00016767,2]
[339398784,1727569841515,-1161.515601,0.00016767,2]
[339398787,1727569841528,-151.0,0.00016767,2]
[339398789,1727569841537,-151.0,0.00016767,2]
[339398791,1727569841547,-82448.51537547,0.00016767,2]
[339398792,1727569841555,-500.0,0.00016773,2]
[339398793,1727569841565,-500.0,0.00016773,2]
[339398794,1727569841574,-500.0,0.00016773,2]
[339398795,1727569841583,-500.0,0.00016773,2]
[339398796,1727569841592,-250.90389912,0.00016773,2]
[339398798,1727569841601,-500.0,0.00016773,2]
[339398800,1727569841610,-500.0,0.00016773,2]
[339398802,1727569841619,-500.0,0.00016773,2]
[339398804,1727569841629,-500.60809004,0.00016773,2]
[339398806,1727569841638,-501.19255557,0.00016773,2]
[339398807,1727569841647,-500.0,0.00016773,2]
[339398808,1727569841657,-500.0,0.00016773,2]
[339398809,1727569841666,-501.15771748,0.00016773,2]
[339398810,1727569841675,-500.60265573,0.00016773,2]
[339398811,1727569841684,-500.0,0.00016773,2]
[339398812,1727569841693,-344.214361,0.00016775,2]
[339398813,1727569841702,-150.112233,0.000168,2]
[339398814,1727569841711,-150.112233,0.000168,2]
[339398815,1727569841720,-150.112233,0.000168,2]
[339398817,1727569841729,-150.112233,0.000168,2]
[339398818,1727569841738,-150.112233,0.000168,2]
[339398820,1727569841748,-150.112233,0.000168,2]
[339398822,1727569841757,-150.112233,0.000168,2]
[339398824,1727569841766,-150.112233,0.000168,2]
[339398826,1727569841775,-150.112233,0.000168,2]
[339398828,1727569841785,-150.112233,0.000168,2]
[339398830,1727569841794,-150.0,0.000168,2]
[339398832,1727569841803,-307.80549831,0.000168,2]
[339398834,1727569841813,-150.112233,0.000168,2]
[339398836,1727569841822,-150.112233,0.000168,2]
[339398837,1727569841831,-150.112236,0.000168,2]
[339398839,1727569841841,-16678.5926782,0.00016829,2]
[339398841,1727569841850,-173903.88053781,0.00016839,2]
[339399313,1727569846387,-196.81447112,0.00016025,2]
[339399315,1727569846399,-539.45298505,0.00016839,2]
[339402347,1727571038672,-309.14336,0.00015386,2]
[339402349,1727571038683,-207.663247,0.00015438,2]
[339402351,1727571038692,-160.461035,0.00015495,2]
[339402353,1727571038702,-119.3976991,0.00015899,2]
[339402380,1727571038944,-41.0633359,0.00015899,2]
[339402382,1727571038954,-309.14336,0.00016071,2]
[339402384,1727571038963,-160.461035,0.00016303,2]
[339402386,1727571038973,-228.6477743,0.00016457,2]
[339402388,1727571038982,-7066.61254455,0.00016457,2]
[339402390,1727571038991,-228.6477743,0.00016458,2]
[339402392,1727571039000,-228.6477743,0.00016459,2]
[339402394,1727571039010,-228.6477743,0.0001646,2]
[339402396,1727571039019,-1904.56690711,0.0001646,2]
[339402538,1727571040543,-438.9796397,0.0001646,2]
[339402540,1727571040552,-533.0203603,0.00016461,2]
[339402545,1727571040601,-466.9796397,0.00016461,2]
[339402547,1727571040613,-228.6477743,0.00016461,2]
[339402550,1727571040623,-2495.71532039,0.00016473,2]
[339402551,1727571040633,-300.0,0.00016485,2]
[339402553,1727571040645,-300.0,0.00016485,2]
[339402555,1727571040654,-500.0,0.00016486,7]
[339402557,1727571040664,-214.0,0.00016486,7]
[339402559,1727571040675,-500.0,0.00016486,7]
[339402561,1727571040685,-500.0,0.00016486,7]
[339402563,1727571040694,-500.0,0.00016486,7]
[339402565,1727571040703,-150.112233,0.000165,2]
[339402567,1727571040713,-181.0,0.0001651,2]
[339402569,1727571040723,-500.0,0.00016539,2]
[339402571,1727571040732,-500.0,0.00016539,2]
[339402573,1727571040742,-500.0,0.00016539,2]
[339402575,1727571040752,-500.0,0.00016539,2]
[339402577,1727571040762,-432.80315711,0.00016539,2]
[339402579,1727571040771,-500.0,0.00016539,2]
[339402581,1727571040780,-500.0,0.00016539,2]
[339402583,1727571040790,-500.0,0.00016539,2]
[339402585,1727571040800,-510.9075855,0.00016539,2]
[339402587,1727571040809,-500.0,0.00016539,2]
[339402589,1727571040819,-500.0,0.00016539,2]
[339402591,1727571040828,-500.0,0.00016539,2]
[339402593,1727571040837,-500.0,0.00016539,2]
[339402594,1727571040847,-500.0,0.00016539,2]
[339402596,1727571040856,-500.0,0.00016539,2]
[339402598,1727571040865,-500.0,0.00016539,2]
[339402600,1727571040874,-500.0,0.00016539,2]
[339402602,1727571040884,-500.0,0.00016539,2]
[339402604,1727571040893,-180.96474503,0.00016539,2]
[339402606,1727571040902,-500.0,0.00016539,2]
[339402608,1727571040912,-500.0,0.00016539,2]
[339402610,1727571040921,-500.0,0.00016539,2]
[339402612,1727571040930,-500.0,0.00016539,2]
[339402614,1727571040939,-500.0,0.00016539,2]
[339402616,1727571040950,-500.0,0.00016539,2]
[339402618,1727571040960,-429.40884399,0.0001654,2]
[339402620,1727571040970,-500.0,0.0001654,2]
[339402622,1727571040982,-500.0,0.0001654,2]
[339402624,1727571040992,-500.0,0.0001654,2]
[339402626,1727571041001,-500.0,0.0001654,2]
[339402628,1727571041011,-181.95840381,0.0001654,2]
[339402630,1727571041020,-500.0,0.0001654,2]
[339402631,1727571041033,-292.57704431,0.0001654,2]
[339402632,1727571041043,-549865.625323,0.00016541,2]
[339402633,1727571041052,-82448.51537547,0.00016571,2]
[339402634,1727571041061,-500.0,0.00016573,2]
[339402635,1727571041071,-500.0,0.00016573,2]
[339402636,1727571041080,-500.0,0.00016573,2]
[339402637,1727571041089,-500.0,0.00016573,2]
[339402638,1727571041098,-250.90389912,0.00016573,2]
[339402639,1727571041108,-150.112233,0.000166,2]
[339402640,1727571041118,-150.112233,0.000166,2]
[339402641,1727571041128,-150.112233,0.000166,2]
[339402642,1727571041137,-150.112233,0.000166,2]
[339402643,1727571041147,-150.112233,0.000166,2]
[339402644,1727571041157,-150.112233,0.000166,2]
[339402645,1727571041166,-150.112233,0.000166,2]
[339402646,1727571041176,-150.112233,0.000166,2]
[339402647,1727571041185,-150.112233,0.000166,2]
[339402648,1727571041195,-150.112233,0.000166,2]
[339402650,1727571041205,-150.112233,0.000166,2]
[339402652,1727571041215,-150.112233,0.000166,2]
[339402654,1727571041224,-150.112233,0.000166,2]
[339402656,1727571041238,-150.112233,0.000166,2]
[339402658,1727571041247,-150.112233,0.000166,2]
[339402660,1727571041257,-150.112233,0.000166,2]
[339402662,1727571041267,-151.0,0.00016639,2]
[339402664,1727571041277,-151.0,0.00016639,2]
[339402677,1727571041397,-151.0,0.00016639,2]
[339402679,1727571041410,-151.0,0.00016639,2]
[339402681,1727571041420,-151.0,0.00016639,2]
[339402683,1727571041430,-151.0,0.00016639,2]
[339402685,1727571041440,-2760.327805,0.00016639,2]
[339402688,1727571041450,-2760.327805,0.00016639,2]
[339402689,1727571041459,-1161.515601,0.00016639,2]
[339402692,1727571041469,-1161.515601,0.00016639,2]
[339402694,1727571041479,-151.0,0.00016639,2]
[339402696,1727571041489,-151.0,0.00016639,2]
[339402698,1727571041498,-1554.306659,0.00016639,2]
[339402700,1727571041508,-151.0,0.00016639,2]
[339402702,1727571041518,-1554.306659,0.00016639,2]
[339402704,1727571041528,-167.436069,0.00016639,2]
[339402706,1727571041538,-642.911126,0.00016639,2]
[339402708,1727571041548,-642.911126,0.00016639,2]
[339402710,1727571041557,-151.0,0.00016639,2]
[339402712,1727571041568,-1207.205987,0.00016639,2]
[339402714,1727571041577,-1207.205987,0.00016639,2]
[339402716,1727571041587,-187.528705,0.00016639,2]
[339402718,1727571041597,-151.0,0.00016639,2]
[339402720,1727571041606,-187.528705,0.00016639,2]
[339402722,1727571041615,-1129.066985,0.00016639,2]
[339402724,1727571041625,-1129.066985,0.00016639,2]
[339402726,1727571041634,-166.580913,0.00016639,2]
[339402728,1727571041644,-166.580913,0.00016639,2]
[339402729,1727571041653,-3004.044776,0.00016639,2]
[339402731,1727571041663,-158.632731,0.00016639,2]
[339402734,1727571041673,-3004.044776,0.00016639,2]
[339402736,1727571041682,-158.632731,0.00016639,2]
[339402737,1727571041691,-151.0,0.00016661,2]
[339402739,1727571041700,-151.0,0.00016661,2]
[339402742,1727571041710,-151.0,0.00016661,2]
[339402744,1727571041719,-151.0,0.00016661,2]
[339402746,1727571041730,-199.812963,0.00016661,2]
[339402748,1727571041740,-199.812963,0.00016661,2]
[339402750,1727571041749,-151.0,0.00016661,2]
[339402752,1727571041759,-326.949001,0.00016661,2]
[339402754,1727571041769,-151.0,0.00016661,2]
[339402756,1727571041778,-326.949001,0.00016661,2]
[339402758,1727571041787,-168.029232,0.00016661,2]
[339402760,1727571041797,-168.029232,0.00016661,2]
[339402762,1727571041807,-151.0,0.00016661,2]
[339402764,1727571041817,-155.619656,0.00016661,2]
[339402766,1727571041827,-155.619656,0.00016661,2]
[339402768,1727571041838,-382.488627,0.00016661,2]
[339402770,1727571041847,-2167.647188,0.00016661,2]
[339402772,1727571041857,-2167.647188,0.00016661,2]
[339402774,1727571041867,-382.488627,0.00016661,2]
[339402776,1727571041876,-153.818229,0.00016661,2]
[339402778,1727571041886,-153.818229,0.00016661,2]
[339402780,1727571041896,-2333.975707,0.00016661,2]
[339402781,1727571041905,-2333.975707,0.00016661,2]
[339402783,1727571041914,-160.0,0.0001667,2]
[339402785,1727571041924,-173903.88053781,0.00016671,2]
[339402787,1727571041933,-151.0,0.00016671,2]
[339402790,1727571041944,-151.0,0.00016671,2]
[339402792,1727571041954,-151.0,0.00016671,2]
[339402794,1727571041965,-151.0,0.00016671,2]
[339402796,1727571041975,-199.812963,0.00016671,2]
[339402798,1727571041984,-199.812963,0.00016671,2]
[339402800,1727571041993,-151.0,0.00016671,2]
[339402802,1727571042004,-326.949001,0.00016671,2]
[339402804,1727571042013,-151.0,0.00016671,2]
[339402806,1727571042026,-326.949001,0.00016671,2]
[339402808,1727571042036,-168.029232,0.00016671,2]
[339402810,1727571042046,-168.029232,0.00016671,2]
[339402812,1727571042055,-151.0,0.00016671,2]
[339402814,1727571042066,-155.619656,0.00016671,2]
[339402816,1727571042076,-155.619656,0.00016671,2]
[339402818,1727571042087,-382.488627,0.00016671,2]
[339402820,1727571042097,-2167.647188,0.00016671,2]
[339402823,1727571042108,-2167.647188,0.00016671,2]
[339402825,1727571042119,-382.488627,0.00016671,2]
[339402827,1727571042129,-151.0,0.00016671,2]
[339402829,1727571042139,-151.0,0.00016671,2]
[339402831,1727571042149,-464.046956,0.00016671,2]
[339402833,1727571042158,-464.046956,0.00016671,2]
[339402835,1727571042170,-652.806289,0.00016671,2]
[339402837,1727571042180,-151.0,0.00016671,2]
[339402839,1727571042189,-652.806289,0.00016671,2]
[339402841,1727571042199,-153.818229,0.00016671,2]
[339402843,1727571042209,-151.0,0.00016671,2]
[339402845,1727571042219,-153.818229,0.00016671,2]
[339402847,1727571042228,-151.0,0.00016671,2]
[339402849,1727571042237,-151.0,0.00016671,2]
[339402851,1727571042247,-2333.975707,0.00016671,2]
[339402853,1727571042257,-2333.975707,0.00016671,2]
[339402855,1727571042266,-157.708472,0.00016671,2]
[339402857,1727571042276,-332.1199,0.00016671,2]
[339402860,1727571042286,-332.1199,0.00016671,2]
[339402862,1727571042296,-152.739596,0.00016671,2]
[339402864,1727571042306,-151.0,0.00016671,2]
[339402866,1727571042316,-152.739596,0.00016671,2]
[339402868,1727571042325,-1263.175817,0.00016671,2]
[339402870,1727571042337,-1263.175817,0.00016671,2]
[339402872,1727571042346,-151.0,0.00016671,2]
[339402874,1727571042356,-151.0,0.00016671,2]
[339402876,1727571042366,-151.0,0.00016671,2]
[339402878,1727571042375,-153.497327,0.00016671,2]
[339402880,1727571042386,-151.0,0.00016671,2]
[339402882,1727571042395,-151.0,0.00016671,2]
[339402883,1727571042405,-151.0,0.00016671,2]
[339402885,1727571042415,-2523.306322,0.00016671,2]
[339402887,1727571042425,-2523.306322,0.00016671,2]
[339402889,1727571042435,-2760.327805,0.00016671,2]
[339402891,1727571042445,-2760.327805,0.00016671,2]
[339402893,1727571042455,-1161.515601,0.00016671,2]
[339402895,1727571042464,-1161.515601,0.00016671,2]
[339402896,1727571042474,-151.0,0.00016671,2]
[339402898,1727571042486,-154.479106,0.00016671,2]
[339402900,1727571042496,-1554.306659,0.00016671,2]
[339402902,1727571042506,-151.0,0.00016671,2]
[339402904,1727571042515,-1554.306659,0.00016671,2]
[339402906,1727571042526,-642.911126,0.00016671,2]
[339402908,1727571042537,-642.911126,0.00016671,2]
[339402910,1727571042547,-289.046877,0.00016671,2]
[339402911,1727571042556,-1207.205987,0.00016671,2]
[339402912,1727571042565,-1207.205987,0.00016671,2]
[339402913,1727571042575,-187.528705,0.00016671,2]
[339402914,1727571042587,-151.0,0.00016671,2]
[339402915,1727571042597,-187.528705,0.00016671,2]
[339402916,1727571042607,-1129.066985,0.00016671,2]
[339402917,1727571042617,-1129.066985,0.00016671,2]
[339402918,1727571042629,-166.580913,0.00016671,2]
[339402919,1727571042639,-166.580913,0.00016671,2]
[339402920,1727571042648,-3004.044776,0.00016671,2]
[339402921,1727571042659,-158.632731,0.00016671,2]
[339402922,1727571042670,-3004.044776,0.00016671,2]
[339402923,1727571042679,-158.632731,0.00016671,2]
[339402924,1727571042688,-500.0,0.00016673,2]
[339402925,1727571042699,-500.0,0.00016673,2]
[339402926,1727571042709,-329.01855453,0.00016673,2]
[339402927,1727571042719,-500.0,0.00016673,2]
[339402928,1727571042730,-500.0,0.00016673,2]
[339402929,1727571042740,-500.0,0.00016673,2]
[339402930,1727571042750,-500.0,0.00016673,2]
[339402931,1727571042760,-500.0,0.00016673,2]
[339402932,1727571042770,-500.0,0.00016673,2]
[339402933,1727571042779,-500.0,0.00016673,2]
[339402934,1727571042789,-261.60247268,0.00016673,2]
[339402935,1727571042798,-500.51828043,0.00016673,2]
[339402936,1727571042808,-500.0,0.00016673,2]
[339402937,1727571042817,-500.0,0.00016673,2]
[339402938,1727571042827,-500.0,0.00016673,2]
[339402939,1727571042836,-500.0,0.00016673,2]
[339402940,1727571042846,-500.0,0.00016673,2]
[339402941,1727571042855,-500.0,0.00016673,2]
[339402942,1727571042864,-500.0,0.00016673,2]
[339402943,1727571042873,-500.0,0.00016673,2]
[339402944,1727571042882,-501.47214977,0.00016673,2]
[339402945,1727571042893,-500.0,0.00016673,2]
[339402946,1727571042904,-501.19255557,0.00016673,2]
[339402947,1727571042914,-500.0,0.00016673,2]
[339402948,1727571042924,-500.0,0.00016673,2]
[339402949,1727571042933,-500.60809004,0.00016673,2]
[339402950,1727571042942,-500.0,0.00016673,2]
[339402952,1727571042952,-501.15771748,0.00016673,2]
[339402953,1727571042964,-500.60265573,0.00016673,2]
[339402954,1727571042976,-150.112233,0.000167,2]
[339402955,1727571042988,-150.112233,0.000167,2]
[339402956,1727571042999,-150.112233,0.000167,2]
[339402957,1727571043009,-150.112233,0.000167,2]
[339402958,1727571043022,-150.112233,0.000167,2]
[339402959,1727571043036,-150.112233,0.000167,2]
[339402960,1727571043046,-150.112233,0.000167,2]
[339402961,1727571043055,-150.112233,0.000167,2]
[339402963,1727571043145,-150.112233,0.000167,2]
[339402964,1727571043155,-150.112239,0.000167,2]
[339402965,1727571043164,-642.911126,0.00016729,2]
[339402966,1727571043173,-642.911126,0.00016729,2]
[339402967,1727571043182,-1207.205987,0.00016729,2]
[339402968,1727571043191,-1207.205987,0.00016729,2]
[339402969,1727571043200,-187.528705,0.00016729,2]
[339402970,1727571043210,-151.0,0.00016729,2]
[339402971,1727571043219,-187.528705,0.00016729,2]
[339402972,1727571043229,-1129.066985,0.00016729,2]
[339402973,1727571043239,-1129.066985,0.00016729,2]
[339402974,1727571043248,-166.580913,0.00016729,2]
[339402975,1727571043258,-166.580913,0.00016729,2]
[339402976,1727571043269,-3004.044776,0.00016729,2]
[339402977,1727571043278,-158.632731,0.00016729,2]
[339402978,1727571043288,-3004.044776,0.00016729,2]
[339402979,1727571043297,-158.632731,0.00016729,2]
[339402982,1727571043307,-908.523258,0.00016729,2]
[339402983,1727571043317,-908.523258,0.00016729,2]
[339402984,1727571043327,-373.676985,0.00016729,2]
[339402985,1727571043338,-373.676985,0.00016729,2]
[339402986,1727571043349,-151.0,0.00016739,2]
[339402987,1727571043359,-151.0,0.00016739,2]
[339402988,1727571043370,-464.046956,0.00016739,2]
[339402989,1727571043380,-464.046956,0.00016739,2]
[339402990,1727571043391,-652.806289,0.00016739,2]
[339402991,1727571043401,-151.0,0.00016739,2]
[339402992,1727571043410,-652.806289,0.00016739,2]
[339402993,1727571043421,-151.0,0.00016739,2]
[339402994,1727571043432,-151.0,0.00016739,2]
[339402995,1727571043443,-157.708472,0.00016739,2]
[339402996,1727571043454,-332.1199,0.00016739,2]
[339402997,1727571043463,-332.1199,0.00016739,2]
[339402998,1727571043473,-152.739596,0.00016739,2]
[339402999,1727571043483,-151.0,0.00016739,2]
[339403000,1727571043492,-152.739596,0.00016739,2]
[339403001,1727571043501,-1263.175817,0.00016739,2]
[339403002,1727571043511,-1263.175817,0.00016739,2]
[339403003,1727571043522,-151.0,0.00016739,2]
[339403004,1727571043532,-151.0,0.00016739,2]
[339403005,1727571043542,-151.0,0.00016739,2]
[339403006,1727571043553,-151.0,0.00016739,2]
[339403007,1727571043563,-151.0,0.00016739,2]
[339403008,1727571043573,-151.0,0.00016739,2]
[339403009,1727571043583,-151.0,0.00016739,2]
[339403010,1727571043593,-151.0,0.00016739,2]
[339403011,1727571043602,-154.357503,0.00016739,2]
[339403012,1727571043612,-151.0,0.00016739,2]
[339403013,1727571043621,-2523.306322,0.00016739,2]
[339403014,1727571043630,-151.0,0.00016739,2]
[339403015,1727571043640,-2523.306322,0.00016739,2]
[339403016,1727571043649,-2760.327805,0.00016739,2]
[339403017,1727571043659,-2760.327805,0.00016739,2]
[339403018,1727571043669,-2760.327805,0.00016739,2]
[339403019,1727571043678,-2760.327805,0.00016739,2]
[339403020,1727571043687,-1161.515601,0.00016739,2]
[339403021,1727571043696,-1161.515601,0.00016739,2]
[339403022,1727571043706,-1161.515601,0.00016739,2]
[339403023,1727571043715,-1161.515601,0.00016739,2]
[339403024,1727571043724,-151.0,0.00016739,2]
[339403025,1727571043735,-1554.306659,0.00016739,2]
[339403026,1727571043745,-151.0,0.00016739,2]
[339403027,1727571043754,-1554.306659,0.00016739,2]
[339403028,1727571043764,-166.580913,0.00016739,2]
[339403029,1727571043774,-166.580913,0.00016739,2]
[339403030,1727571043783,-3004.044776,0.00016739,2]
[339403031,1727571043793,-158.632731,0.00016739,2]
[339403032,1727571043802,-3004.044776,0.00016739,2]
[339403033,1727571043812,-158.632731,0.00016739,2]
[339403034,1727571043821,-309.14336,0.00016756,2]
[339403035,1727571043831,-3000.0,0.00016788,2]
[339403036,1727571043840,-908.523258,0.00016788,2]
[339403037,1727571043850,-908.523258,0.00016788,2]
[339403038,1727571043860,-373.676985,0.00016788,2]
[339403039,1727571043870,-373.676985,0.00016788,2]
[339403040,1727571043879,-150.112233,0.000168,2]
[339403041,1727571043889,-150.112233,0.000168,2]
[339403042,1727571043899,-150.112233,0.000168,2]
[339403043,1727571043909,-150.112233,0.000168,2]
[339403044,1727571043919,-150.112233,0.000168,2]